Department Family,Entity,Date,Expense Type,Expense Area,Supplier,Transaction Number,Amount
DOH,London Ambulance Service NHS Trust,03/07/2013,Blanket Purchase,Corporate Logistics,Thomas Kneale & Co Ltd,79546,50232.00
DOH,London Ambulance Service NHS Trust,03/07/2013,Cac Tools Maintenance,Software Development & Support,Trustmarque Solutions,79697,89917.09
DOH,London Ambulance Service NHS Trust,03/07/2013,Cleaning Of Premises,Estate Management,Lakethorne Ltd,80002,56877.58
DOH,London Ambulance Service NHS Trust,03/07/2013,Im&T Service Desk Maintenance,Airwave Support,Department Of Health,79747,520502.62
DOH,London Ambulance Service NHS Trust,03/07/2013,Proceeds From Asset Disposals,Fleet Support Services,Shawbrook Bank Ltd,80122,78094.68
DOH,London Ambulance Service NHS Trust,03/07/2013,Proceeds From Asset Disposals,Fleet Support Services,Shawbrook Bank Ltd,80368,-78094.68
DOH,London Ambulance Service NHS Trust,03/07/2013,St John Ambulance Service,Deputy Director Of Operations,St John Ambulance Londonprince,80366,128043.33
DOH,London Ambulance Service NHS Trust,03/07/2013,Subscriptions To Associations,Director Of Corporate Services,Care Quality Commission,79581,85000.00
DOH,London Ambulance Service NHS Trust,03/07/2013,Tyres,Fleet Support Services,Ats Euromaster Ltd,76483,87662.66
DOH,London Ambulance Service NHS Trust,03/07/2013,Vehicles,Capital,Gowrings Mobility Group Limited,79588,34440.40
DOH,London Ambulance Service NHS Trust,03/07/2013,Vehicles,Capital,Gowrings Mobility Group Limited,79846,34440.40
DOH,London Ambulance Service NHS Trust,03/07/2013,Vehicles,Capital,Gowrings Mobility Group Limited,80251,34440.40
DOH,London Ambulance Service NHS Trust,10/07/2013,Agency Professional Staff,Trust Management,Allen Lane Financial Recruitment,80533,45337.34
DOH,London Ambulance Service NHS Trust,10/07/2013,Buildings,Capital,Millane Contract Services Ltd,80731,38233.20
DOH,London Ambulance Service NHS Trust,10/07/2013,Defibrillator Purchase,Capital,Physio-Control Uk Sales Ltd,80866,789120.00
DOH,London Ambulance Service NHS Trust,10/07/2013,Lease Costs For A&E Vehicles,Vehicle Leases,Siemens Financial Services Ltd,80931,82536.55
DOH,London Ambulance Service NHS Trust,10/07/2013,Pts Control Maintenance,Desktop,3tc Software Ltd,81283,56132.17
DOH,London Ambulance Service NHS Trust,10/07/2013,Vehicle Recovery,Fleet Support Services,Rac Motoring Services,78581,30000.00
DOH,London Ambulance Service NHS Trust,17/07/2013,Consultancy Fees,Director Of Finance,Grant Thornton Uk Llp,82250,29816.83
DOH,London Ambulance Service NHS Trust,17/07/2013,Data Network Rental,Networks Non Pay,Bt Global Services,82248,66969.20
DOH,London Ambulance Service NHS Trust,17/07/2013,Defibrillator Purchase,Fru Procurement,De Lage Landen Leasing Ltd,82057,34959.60
DOH,London Ambulance Service NHS Trust,17/07/2013,External Audit Fees,Financial Control,Pricewaterhousecoopers,79582,45788.40
DOH,London Ambulance Service NHS Trust,17/07/2013,Technical Support - Contract,Telent Mdt Maintenance,Telent Technology Services Ltd,80193,165737.88
DOH,London Ambulance Service NHS Trust,24/07/2013,Electrical Planned,St Andrews House Estates,Tkw Electrical Services Ltd,81322,32805.48
DOH,London Ambulance Service NHS Trust,24/07/2013,Private Ambulance Hire,Deputy Director Of Operations,Ast Ambulance Service Ltd,83312,51314.50
DOH,London Ambulance Service NHS Trust,24/07/2013,Private Ambulance Hire,Deputy Director Of Operations,Ast Ambulance Service Ltd,83313,32436.75
DOH,London Ambulance Service NHS Trust,24/07/2013,Private Ambulance Hire,Deputy Director Of Operations,Ast Ambulance Service Ltd,83315,21443.00
DOH,London Ambulance Service NHS Trust,24/07/2013,Private Ambulance Hire,Deputy Director Of Operations,Ast Ambulance Service Ltd,83317,21498.50
DOH,London Ambulance Service NHS Trust,24/07/2013,Private Ambulance Hire,Deputy Director Of Operations,Ast Ambulance Service Ltd,83320,21102.50
DOH,London Ambulance Service NHS Trust,24/07/2013,Private Ambulance Hire,Deputy Director Of Operations,Ast Ambulance Service Ltd,83322,21942.00
DOH,London Ambulance Service NHS Trust,24/07/2013,Private Ambulance Hire,Deputy Director Of Operations,X9 Services,83407,34902.45
DOH,London Ambulance Service NHS Trust,24/07/2013,Private Ambulance Hire,Deputy Director Of Operations,X9 Services,83408,32610.69
DOH,London Ambulance Service NHS Trust,24/07/2013,Private Ambulance Hire,Deputy Director Of Operations,X9 Services,83409,31091.45
DOH,London Ambulance Service NHS Trust,24/07/2013,Private Ambulance Hire,Deputy Director Of Operations,X9 Services,83411,33383.54
DOH,London Ambulance Service NHS Trust,24/07/2013,Vehicles,Capital,Attobus Ltd,82868,62539.26
DOH,London Ambulance Service NHS Trust,25/07/2013,Private Ambulance Hire,Deputy Director Of Operations,Mediforce Ltd,83952,39356.25
DOH,London Ambulance Service NHS Trust,25/07/2013,Private Ambulance Hire,Deputy Director Of Operations,Mediforce Ltd,83953,40659.76
DOH,London Ambulance Service NHS Trust,25/07/2013,Private Ambulance Hire,Deputy Director Of Operations,Mediforce Ltd,83955,29906.25
DOH,London Ambulance Service NHS Trust,25/07/2013,Private Ambulance Hire,Deputy Director Of Operations,Mediforce Ltd,83956,34518.75
DOH,London Ambulance Service NHS Trust,25/07/2013,Private Ambulance Hire,Deputy Director Of Operations,Mediforce Ltd,83957,52389.00
DOH,London Ambulance Service NHS Trust,02/07/2013,Ensign Insurance Debtor,Control Accounts,QBE International Insurance T/A Ensign,5579,231414.58
DOH,London Ambulance Service NHS Trust,16/07/2013,BP Control Account,Control Accounts,BP Oil,5897,232836.83
DOH,London Ambulance Service NHS Trust,23/07/2013,Child Care Arrangements,Payroll,Busy Bees Childcare Ltd,5929,28383.11
DOH,London Ambulance Service NHS Trust,29/07/2013,Lease Costs For A&E Vehicles,Deputy Director Of Operations,Shawbrook Bank Ltd,5999,423574.49
DOH,London Ambulance Service NHS Trust,30/07/2013,BOC Control Account,Control Accounts,British Oxygen,6040,93184.43
DOH,London Ambulance Service NHS Trust,30/07/2013,Finance lease Creds <1 year,Control Accounts,Shawbrook Bank Ltd,6040,29251.57
DOH,London Ambulance Service NHS Trust,31/07/2013,BP Control Account,Control Accounts,BP Oil,6163,252559.03
DOH,London Ambulance Service NHS Trust,16/07/2013,CNST Contributions,Legal Services,NHSLA,5897,82975.28
DOH,London Ambulance Service NHS Trust,16/07/2013,Liability to 3rd Party Scheme,Legal Services,NHSLA,5897,24019.16
DOH,London Ambulance Service NHS Trust,16/07/2013,Property Expenses Scheme,Legal Services,NHSLA,5897,2183.56
